[Event "Early-Titled-Tuesday-Blitz-October-10-2023"]
[Site "Chess.com"]
[Date "2023.10.10"]
[Round "2"]
[White "lluiss"]
[Black "Russian_berezka"]
[Result "0-1"]
[WhiteElo "2179"]
[BlackElo "2644"]
[TimeControl "180+1"]
[EndTime "8:19:50 PDT"]
[Termination "Russian_berezka won on time"]

1. Nf3 {[%clk 0:03:00.9]} 1... Nf6 {[%clk 0:02:59.6]} 2. d4 {[%clk 0:02:58.5]}
2... d5 {[%clk 0:02:58.3]} 3. c4 {[%clk 0:02:58.4]} 3... e6 {[%clk 0:02:58.6]}
4. cxd5 {[%clk 0:02:58.5]} 4... exd5 {[%clk 0:02:58]} 5. Nc3 {[%clk 0:02:58.3]}
5... c6 {[%clk 0:02:50.3]} 6. Qc2 {[%clk 0:02:57.9]} 6... g6 {[%clk 0:02:46.1]}
7. Bg5 {[%clk 0:02:53.3]} 7... Be7 {[%clk 0:02:38.9]} 8. e3 {[%clk 0:02:53]}
8... Bf5 {[%clk 0:02:38.2]} 9. Bd3 {[%clk 0:02:53.1]} 9... Bxd3 {[%clk
0:02:38.1]} 10. Qxd3 {[%clk 0:02:54]} 10... Nbd7 {[%clk 0:02:34.3]} 11. O-O
{[%clk 0:02:52.8]} 11... O-O {[%clk 0:02:33.6]} 12. h3 {[%clk 0:02:50.5]} 12...
Re8 {[%clk 0:02:33.4]} 13. Bf4 {[%clk 0:02:49.4]} 13... Bf8 {[%clk 0:02:26.4]}
14. Nd2 {[%clk 0:02:48.5]} 14... b5 {[%clk 0:02:13]} 15. Ne2 {[%clk 0:02:42.7]}
15... a5 {[%clk 0:02:09.7]} 16. Bg5 {[%clk 0:02:34.9]} 16... Qb6 {[%clk
0:02:07.5]} 17. Bxf6 {[%clk 0:02:33.8]} 17... Nxf6 {[%clk 0:02:07.5]} 18. Ng3
{[%clk 0:02:24.1]} 18... h5 {[%clk 0:02:06.1]} 19. Rfc1 {[%clk 0:02:23]} 19...
a4 {[%clk 0:01:58.6]} 20. Rc2 {[%clk 0:02:08.4]} 20... a3 {[%clk 0:01:51.3]} 21.
b3 {[%clk 0:02:07]} 21... Rac8 {[%clk 0:01:50.7]} 22. Rac1 {[%clk 0:02:06.9]}
22... Bd6 {[%clk 0:01:38.7]} 23. Ne2 {[%clk 0:02:00.2]} 23... Kg7 {[%clk
0:01:38.8]} 24. Nc3 {[%clk 0:01:42.9]} 24... Qb8 {[%clk 0:01:32]} 25. e4 {[%clk
0:01:40.2]} 25... dxe4 {[%clk 0:00:48]} 26. Ncxe4 {[%clk 0:01:39.8]} 26... Re6
{[%clk 0:00:35.4]} 27. Nxf6 {[%clk 0:01:33.9]} 27... Rxf6 {[%clk 0:00:30.4]} 28.
d5 {[%clk 0:01:33.6]} 28... Bh2+ {[%clk 0:00:18.8]} 29. Kf1 {[%clk 0:01:21.5]}
29... Qe5 {[%clk 0:00:06.1]} 30. Nf3 {[%clk 0:01:11.4]} 30... Qf4 {[%clk
0:00:03.9]} 31. dxc6 {[%clk 0:01:05.8]} 31... Rd6 {[%clk 0:00:02.9]} 32. Qc3+
{[%clk 0:01:04]} 32... Kh7 {[%clk 0:00:03.2]} 33. c7 {[%clk 0:00:52.6]} 33...
Rd7 {[%clk 0:00:03.2]} 34. Qe3 {[%clk 0:00:50.1]} 34... Qxe3 {[%clk 0:00:02.8]}
35. fxe3 {[%clk 0:00:50.2]} 35... Bxc7 {[%clk 0:00:03.5]} 36. Ne5 {[%clk
0:00:44.5]} 36... Re7 {[%clk 0:00:03.3]} 37. Nc6 {[%clk 0:00:35.4]} 37... Re6
{[%clk 0:00:03.5]} 38. Na7 {[%clk 0:00:32.5]} 38... Rf6+ {[%clk 0:00:03.6]} 39.
Ke2 {[%clk 0:00:28.6]} 39... Re8 {[%clk 0:00:03.2]} 40. Rxc7 {[%clk 0:00:26.9]}
40... b4 {[%clk 0:00:03.9]} 41. Nb5 {[%clk 0:00:22.8]} 41... Re5 {[%clk
0:00:03.5]} 42. Nd4 {[%clk 0:00:22.3]} 42... Kg7 {[%clk 0:00:03.4]} 43. Nf3
{[%clk 0:00:22.3]} 43... Rd5 {[%clk 0:00:03.3]} 44. Rd1 {[%clk 0:00:21.5]} 44...
Ra5 {[%clk 0:00:02.8]} 45. Rdd7 {[%clk 0:00:20.7]} 45... Raf5 {[%clk 0:00:02.6]}
46. h4 {[%clk 0:00:20.4]} 46... Re6 {[%clk 0:00:02.3]} 47. Ng5 {[%clk
0:00:19.9]} 47... Ree5 {[%clk 0:00:01.9]} 48. Rxf7+ {[%clk 0:00:18.9]} 48...
Rxf7 {[%clk 0:00:01.9]} 49. Rxf7+ {[%clk 0:00:18.4]} 49... Kg8 {[%clk
0:00:02.8]} 50. Rb7 {[%clk 0:00:18.1]} 50... Rc5 {[%clk 0:00:02.6]} 51. Rxb4
{[%clk 0:00:16.6]} 51... Rc2+ {[%clk 0:00:03.2]} 52. Kf3 {[%clk 0:00:16.7]}
52... Rxa2 {[%clk 0:00:03.9]} 53. Ra4 {[%clk 0:00:12.9]} 53... Ra1 {[%clk
0:00:04.2]} 54. b4 {[%clk 0:00:12.3]} 54... a2 {[%clk 0:00:03.6]} 55. Kg3 {[%clk
0:00:12.9]} 55... Kf8 {[%clk 0:00:03.2]} 56. Ne6+ {[%clk 0:00:12.9]} 56... Ke7
{[%clk 0:00:03.6]} 57. Nf4 {[%clk 0:00:13.1]} 57... Kd6 {[%clk 0:00:03.7]} 58.
Nxg6 {[%clk 0:00:12.9]} 58... Kc6 {[%clk 0:00:04.4]} 59. Nf4 {[%clk 0:00:12.8]}
59... Kb5 {[%clk 0:00:04.9]} 60. Ra8 {[%clk 0:00:12.7]} 60... Kxb4 {[%clk
0:00:05.6]} 61. e4 {[%clk 0:00:12.5]} 61... Kb3 {[%clk 0:00:06]} 62. e5 {[%clk
0:00:12.8]} 62... Re1 {[%clk 0:00:06.5]} 63. e6 {[%clk 0:00:11.7]} 63... a1=Q
{[%clk 0:00:05.9]} 64. Rxa1 {[%clk 0:00:10.5]} 64... Rxa1 {[%clk 0:00:06.8]} 65.
Nxh5 {[%clk 0:00:09.9]} 65... Re1 {[%clk 0:00:06.3]} 66. Nf4 {[%clk 0:00:10.2]}
66... Kc4 {[%clk 0:00:06.9]} 67. Kg4 {[%clk 0:00:10.7]} 67... Kc5 {[%clk
0:00:07.1]} 68. g3 {[%clk 0:00:11.5]} 68... Kd6 {[%clk 0:00:07.6]} 69. h5 {[%clk
0:00:12.2]} 69... Ke7 {[%clk 0:00:07]} 70. Kg5 {[%clk 0:00:12.5]} 70... Re5+
{[%clk 0:00:06.7]} 71. Kg6 {[%clk 0:00:11.6]} 71... Kf8 {[%clk 0:00:04.3]} 72.
h6 {[%clk 0:00:11.5]} 72... Kg8 {[%clk 0:00:04.6]} 73. h7+ {[%clk 0:00:11.2]}
73... Kh8 {[%clk 0:00:04.8]} 74. Kf6 {[%clk 0:00:10.5]} 74... Re1 {[%clk
0:00:04.2]} 75. Nd5 {[%clk 0:00:08.8]} 75... Kxh7 {[%clk 0:00:03.5]} 76. e7
{[%clk 0:00:08.5]} 76... Rf1+ {[%clk 0:00:02.7]} 77. Kg5 {[%clk 0:00:08.5]}
77... Re1 {[%clk 0:00:03.6]} 78. Kf6 {[%clk 0:00:08.5]} 78... Kg8 {[%clk
0:00:03.7]} 79. Nf4 {[%clk 0:00:08]} 79... Re3 {[%clk 0:00:02.8]} 80. Ne6 {[%clk
0:00:08.2]} 80... Rf3+ {[%clk 0:00:03]} 81. Kg6 {[%clk 0:00:08.2]} 81... Rxg3+
{[%clk 0:00:03.3]} 82. Kh5 {[%clk 0:00:07.7]} 82... Kf7 {[%clk 0:00:02.7]} 83.
Kh4 {[%clk 0:00:02.1]} 83... Re3 {[%clk 0:00:02.5]} 84. Ng5+ {[%clk 0:00:01.7]}
84... Kxe7 {[%clk 0:00:02.9]} 85. Kg4 {[%clk 0:00:02.6]} 85... Ra3 {[%clk
0:00:03]} 86. Kh5 {[%clk 0:00:02.7]} 86... Ra4 {[%clk 0:00:03.9]} 87. Kg6 {[%clk
0:00:01.5]} 87... Ra6+ {[%clk 0:00:03.6]} 0-1

[Event "Early-Titled-Tuesday-Blitz-October-10-2023"]
[Site "Chess.com"]
[Date "2023.10.10"]
[Round "2"]
[White "invisible_s0ul"]
[Black "dosto07"]
[Result "1/2-1/2"]
[WhiteElo "2293"]
[BlackElo "2502"]
[TimeControl "180+1"]
[EndTime "8:20:11 PDT"]
[Termination "Game drawn - insufficient material"]

1. e4 {[%clk 0:02:54.5]} 1... e5 {[%clk 0:02:59.3]} 2. Nf3 {[%clk 0:02:55]} 2...
Nc6 {[%clk 0:02:58.6]} 3. Bb5 {[%clk 0:02:55.7]} 3... a6 {[%clk 0:02:58.8]} 4.
Ba4 {[%clk 0:02:56.3]} 4... Nf6 {[%clk 0:02:59.2]} 5. O-O {[%clk 0:02:56.4]}
5... Be7 {[%clk 0:02:59.7]} 6. Re1 {[%clk 0:02:52.3]} 6... b5 {[%clk 0:02:59.7]}
7. Bb3 {[%clk 0:02:51.8]} 7... d6 {[%clk 0:03:00.6]} 8. c3 {[%clk 0:02:51.6]}
8... O-O {[%clk 0:03:00.8]} 9. h3 {[%clk 0:02:51.7]} 9... Bb7 {[%clk 0:03:01.2]}
10. d4 {[%clk 0:02:51.3]} 10... Re8 {[%clk 0:03:01.6]} 11. Nbd2 {[%clk
0:02:48.8]} 11... Bf8 {[%clk 0:03:01.3]} 12. a4 {[%clk 0:02:24.3]} 12... h6
{[%clk 0:02:56]} 13. Bc2 {[%clk 0:02:18.3]} 13... exd4 {[%clk 0:02:54]} 14. cxd4
{[%clk 0:02:18.9]} 14... Nb4 {[%clk 0:02:54.1]} 15. Bb1 {[%clk 0:02:18.4]} 15...
c5 {[%clk 0:02:54]} 16. d5 {[%clk 0:02:12.8]} 16... Nd7 {[%clk 0:02:52.3]} 17.
Nf1 {[%clk 0:02:03.1]} 17... f5 {[%clk 0:02:41.9]} 18. Ng3 {[%clk 0:01:55.9]}
18... fxe4 {[%clk 0:02:38.7]} 19. Bxe4 {[%clk 0:01:56.8]} 19... Nf6 {[%clk
0:02:37.2]} 20. Bg6 {[%clk 0:01:48]} 20... Rxe1+ {[%clk 0:02:33.6]} 21. Qxe1
{[%clk 0:01:48.9]} 21... Bxd5 {[%clk 0:02:27]} 22. Ra3 {[%clk 0:01:28.8]} 22...
Bf7 {[%clk 0:02:03.2]} 23. Bxf7+ {[%clk 0:01:20.4]} 23... Kxf7 {[%clk
0:02:02.7]} 24. Qd1 {[%clk 0:01:10.2]} 24... bxa4 {[%clk 0:01:46.7]} 25. Bd2
{[%clk 0:00:54.8]} 25... Nfd5 {[%clk 0:01:39.9]} 26. Bxb4 {[%clk 0:00:52.6]}
26... Nxb4 {[%clk 0:01:39.5]} 27. Rxa4 {[%clk 0:00:43.4]} 27... Qf6 {[%clk
0:01:37]} 28. Qb3+ {[%clk 0:00:28]} 28... Qe6 {[%clk 0:01:31.2]} 29. Qc3 {[%clk
0:00:25.8]} 29... Re8 {[%clk 0:01:25.2]} 30. Nf1 {[%clk 0:00:22.5]} 30... Be7
{[%clk 0:01:19.3]} 31. Ne3 {[%clk 0:00:22]} 31... Bf6 {[%clk 0:01:19.3]} 32. Qd2
{[%clk 0:00:21.3]} 32... Kg8 {[%clk 0:01:16.2]} 33. Ra1 {[%clk 0:00:20.4]} 33...
Qb3 {[%clk 0:01:13.4]} 34. Rb1 {[%clk 0:00:20.6]} 34... d5 {[%clk 0:01:09.3]}
35. Ng4 {[%clk 0:00:19.7]} 35... Re6 {[%clk 0:00:55.5]} 36. Nxf6+ {[%clk
0:00:19.2]} 36... Rxf6 {[%clk 0:00:55.5]} 37. Qe2 {[%clk 0:00:18.4]} 37... d4
{[%clk 0:00:53.2]} 38. Qe8+ {[%clk 0:00:17.5]} 38... Kh7 {[%clk 0:00:53.4]} 39.
Qe4+ {[%clk 0:00:17.4]} 39... Kg8 {[%clk 0:00:52.7]} 40. Qe8+ {[%clk 0:00:18]}
40... Rf8 {[%clk 0:00:52.8]} 41. Qe5 {[%clk 0:00:17.4]} 41... Qd5 {[%clk
0:00:52]} 42. Qxd5+ {[%clk 0:00:16.7]} 42... Nxd5 {[%clk 0:00:51.7]} 43. Rc1
{[%clk 0:00:17.6]} 43... Rb8 {[%clk 0:00:31.3]} 44. Rxc5 {[%clk 0:00:16.2]}
44... Nf4 {[%clk 0:00:29]} 45. Nxd4 {[%clk 0:00:16]} 45... Rxb2 {[%clk 0:00:29]}
46. Rc6 {[%clk 0:00:10.1]} 46... a5 {[%clk 0:00:27.7]} 47. Ra6 {[%clk
0:00:10.6]} 47... Ra2 {[%clk 0:00:25.3]} 48. Nc6 {[%clk 0:00:05.9]} 48... a4
{[%clk 0:00:25.1]} 49. Nb4 {[%clk 0:00:06.3]} 49... Ra1+ {[%clk 0:00:22.3]} 50.
Kh2 {[%clk 0:00:07]} 50... a3 {[%clk 0:00:20.6]} 51. Nc2 {[%clk 0:00:07]} 51...
Ra2 {[%clk 0:00:20.4]} 52. Nxa3 {[%clk 0:00:06.1]} 52... Rxf2 {[%clk 0:00:20.5]}
53. Ra8+ {[%clk 0:00:04.4]} 53... Kh7 {[%clk 0:00:19.9]} 54. Kg3 {[%clk
0:00:05]} 54... Rf1 {[%clk 0:00:17.9]} 55. Nc2 {[%clk 0:00:04.9]} 55... Ne2+
{[%clk 0:00:17.7]} 56. Kh2 {[%clk 0:00:04.7]} 56... Nf4 {[%clk 0:00:15.8]} 57.
Ne3 {[%clk 0:00:05.1]} 57... Re1 {[%clk 0:00:14.2]} 58. Ng4 {[%clk 0:00:04.1]}
58... Re2 {[%clk 0:00:12.6]} 59. Kg3 {[%clk 0:00:04.8]} 59... Nxg2 {[%clk
0:00:12.5]} 60. Nf2 {[%clk 0:00:05]} 60... Ne3 {[%clk 0:00:10.9]} 61. Kf3 {[%clk
0:00:05.6]} 61... Re1 {[%clk 0:00:11.2]} 62. Re8 {[%clk 0:00:05.1]} 62... Nc2
{[%clk 0:00:11.3]} 63. Rxe1 {[%clk 0:00:05]} 63... Nxe1+ {[%clk 0:00:11.7]} 64.
Kg3 {[%clk 0:00:05.7]} 64... Kg6 {[%clk 0:00:11.3]} 65. Ng4 {[%clk 0:00:06.1]}
65... Nd3 {[%clk 0:00:10.3]} 66. Ne3 {[%clk 0:00:05.8]} 66... Kf6 {[%clk
0:00:09.7]} 67. Ng2 {[%clk 0:00:06.3]} 67... g5 {[%clk 0:00:09.4]} 68. Kf3
{[%clk 0:00:06.7]} 68... h5 {[%clk 0:00:09.3]} 69. Kg3 {[%clk 0:00:07.3]} 69...
Ne5 {[%clk 0:00:09.5]} 70. Ne3 {[%clk 0:00:07.4]} 70... Ng6 {[%clk 0:00:09]} 71.
Ng2 {[%clk 0:00:07.4]} 71... Ke5 {[%clk 0:00:08.7]} 72. Ne3 {[%clk 0:00:07.7]}
72... Nh4 {[%clk 0:00:08.6]} 73. Nf1 {[%clk 0:00:06.9]} 73... Nf5+ {[%clk
0:00:08.8]} 74. Kg2 {[%clk 0:00:06.8]} 74... Kf4 {[%clk 0:00:09.3]} 75. Nd2
{[%clk 0:00:07]} 75... Ne3+ {[%clk 0:00:08.9]} 76. Kh2 {[%clk 0:00:07.6]} 76...
h4 {[%clk 0:00:09.2]} 77. Nb3 {[%clk 0:00:07.5]} 77... Kf3 {[%clk 0:00:09]} 78.
Nd4+ {[%clk 0:00:07.2]} 78... Kf4 {[%clk 0:00:09.4]} 79. Ne6+ {[%clk 0:00:07.7]}
79... Kf5 {[%clk 0:00:09.8]} 80. Nd4+ {[%clk 0:00:07.7]} 80... Ke4 {[%clk
0:00:10.2]} 81. Ne6 {[%clk 0:00:08.1]} 81... Kf5 {[%clk 0:00:09.3]} 82. Nd4+
{[%clk 0:00:08.3]} 82... Kg6 {[%clk 0:00:09.4]} 83. Nf3 {[%clk 0:00:05.1]} 83...
Kf6 {[%clk 0:00:09.4]} 84. Nd4 {[%clk 0:00:05.5]} 84... Nf5 {[%clk 0:00:07.9]}
85. Nf3 {[%clk 0:00:05.6]} 85... Nd6 {[%clk 0:00:07.7]} 86. Nd4 {[%clk
0:00:05.7]} 86... Ne4 {[%clk 0:00:07.7]} 87. Nf3 {[%clk 0:00:06.2]} 87... Kf5
{[%clk 0:00:06.3]} 88. Nd4+ {[%clk 0:00:06.7]} 88... Kf4 {[%clk 0:00:06.1]} 89.
Ne6+ {[%clk 0:00:07.3]} 89... Ke3 {[%clk 0:00:04.1]} 90. Ng7 {[%clk 0:00:06]}
90... Kf4 {[%clk 0:00:03.3]} 91. Ne6+ {[%clk 0:00:06]} 91... Kf3 {[%clk
0:00:03.7]} 92. Ng7 {[%clk 0:00:06.6]} 92... g4 {[%clk 0:00:04]} 93. hxg4 {[%clk
0:00:06.5]} 93... Kxg4 {[%clk 0:00:04.3]} 94. Ne6 {[%clk 0:00:07.1]} 94... Nf2
{[%clk 0:00:03.3]} 95. Nd4 {[%clk 0:00:07]} 95... h3 {[%clk 0:00:03.3]} 96. Ne2
{[%clk 0:00:06.8]} 96... Ne4 {[%clk 0:00:03.3]} 97. Ng1 {[%clk 0:00:06.2]} 97...
Ng5 {[%clk 0:00:02]} 98. Nxh3 {[%clk 0:00:06.7]} 1/2-1/2

[Event "Early-Titled-Tuesday-Blitz-October-10-2023"]
[Site "Chess.com"]
[Date "2023.10.10"]
[Round "2"]
[White "MightyGMpretender"]
[Black "Lady_Nika"]
[Result "1-0"]
[WhiteElo "2756"]
[BlackElo "2542"]
[TimeControl "180+1"]
[EndTime "8:20:19 PDT"]
[Termination "MightyGMpretender won by resignation"]

1. d4 {[%clk 0:03:00.9]} 1... d5 {[%clk 0:02:59.7]} 2. c4 {[%clk 0:03:00.8]}
2... e6 {[%clk 0:02:59.9]} 3. Nc3 {[%clk 0:03:00.7]} 3... f5 {[%clk 0:03:00.3]}
4. Bf4 {[%clk 0:02:57.3]} 4... Nf6 {[%clk 0:03:00.2]} 5. e3 {[%clk 0:02:57.4]}
5... c6 {[%clk 0:03:00.1]} 6. Nf3 {[%clk 0:02:53.8]} 6... Bd6 {[%clk 0:03:00.4]}
7. Ne5 {[%clk 0:02:49.8]} 7... Qe7 {[%clk 0:03:00.4]} 8. Bd3 {[%clk 0:02:43.3]}
8... Nbd7 {[%clk 0:03:00.4]} 9. cxd5 {[%clk 0:02:42.1]} 9... exd5 {[%clk
0:02:59.8]} 10. Nxd7 {[%clk 0:02:33.9]} 10... Bxd7 {[%clk 0:02:59.8]} 11. Bxd6
{[%clk 0:02:33.6]} 11... Qxd6 {[%clk 0:03:00]} 12. Qf3 {[%clk 0:02:33.4]} 12...
Ne4 {[%clk 0:02:58.3]} 13. Bxe4 {[%clk 0:02:32.8]} 13... fxe4 {[%clk 0:02:56.4]}
14. Qg3 {[%clk 0:02:33.3]} 14... Qe7 {[%clk 0:02:48.6]} 15. O-O {[%clk
0:02:18.5]} 15... O-O {[%clk 0:02:45.4]} 16. Rae1 {[%clk 0:02:12]} 16... Bf5
{[%clk 0:02:37.4]} 17. Kh1 {[%clk 0:02:07.5]} 17... Rf6 {[%clk 0:02:35.8]} 18.
f4 {[%clk 0:02:05.1]} 18... Rg6 {[%clk 0:02:21.2]} 19. Qf2 {[%clk 0:02:05]}
19... h5 {[%clk 0:02:18.9]} 20. Ne2 {[%clk 0:02:04.7]} 20... h4 {[%clk
0:02:18.1]} 21. h3 {[%clk 0:01:57.8]} 21... Rf8 {[%clk 0:02:17.3]} 22. Kh2
{[%clk 0:01:56.7]} 22... Rh6 {[%clk 0:02:02.6]} 23. Rg1 {[%clk 0:01:52.2]} 23...
Bc8 {[%clk 0:02:02]} 24. g4 {[%clk 0:01:43.3]} 24... hxg3+ {[%clk 0:02:01.4]}
25. Rxg3 {[%clk 0:01:43.9]} 25... Kh8 {[%clk 0:01:26.5]} 26. Qg2 {[%clk
0:01:38.8]} 26... Rf5 {[%clk 0:01:22.8]} 27. Rg6 {[%clk 0:01:10.7]} 27... Rfh5
{[%clk 0:01:16.3]} 28. Rxh6+ {[%clk 0:01:09.9]} 28... Rxh6 {[%clk 0:01:16.3]}
29. Ng1 {[%clk 0:01:10.4]} 29... Qh4 {[%clk 0:01:08.5]} 30. Qg3 {[%clk
0:01:06.7]} 30... Qh5 {[%clk 0:01:06.3]} 31. Rf1 {[%clk 0:00:57.7]} 31... Rg6
{[%clk 0:01:04.2]} 32. Qf2 {[%clk 0:00:57.8]} 32... Bf5 {[%clk 0:01:03.8]} 33.
Rc1 {[%clk 0:00:51]} 33... Bg4 {[%clk 0:00:51.4]} 34. Rf1 {[%clk 0:00:36.7]}
34... Bf5 {[%clk 0:00:34.7]} 35. b4 {[%clk 0:00:35.9]} 35... a6 {[%clk
0:00:33.7]} 36. a4 {[%clk 0:00:35.6]} 36... Kh7 {[%clk 0:00:28.4]} 37. Rb1
{[%clk 0:00:30.9]} 37... Bd7 {[%clk 0:00:27.2]} 38. Rb2 {[%clk 0:00:24.8]} 38...
Bg4 {[%clk 0:00:23]} 39. Qf1 {[%clk 0:00:21.3]} 39... Bf5 {[%clk 0:00:11.7]} 40.
Rg2 {[%clk 0:00:18.6]} 40... Rxg2+ {[%clk 0:00:10.3]} 41. Kxg2 {[%clk
0:00:16.9]} 41... g5 {[%clk 0:00:08.5]} 42. Qf2 {[%clk 0:00:14]} 42... g4 {[%clk
0:00:08.9]} 43. h4 {[%clk 0:00:12.9]} 43... Kh6 {[%clk 0:00:08.6]} 44. Kg3
{[%clk 0:00:13.4]} 44... Qe8 {[%clk 0:00:08.3]} 45. Qe1 {[%clk 0:00:09.3]} 45...
Qe7 {[%clk 0:00:08.3]} 46. Ne2 {[%clk 0:00:09.7]} 46... Kh5 {[%clk 0:00:08.7]}
47. Kg2 {[%clk 0:00:10.2]} 47... Qxh4 {[%clk 0:00:08.4]} 48. Qxh4+ {[%clk
0:00:07.5]} 48... Kxh4 {[%clk 0:00:08.6]} 49. Ng3 {[%clk 0:00:08.1]} 49... Bd7
{[%clk 0:00:08]} 50. a5 {[%clk 0:00:07.6]} 50... Bc8 {[%clk 0:00:05]} 51. Ne2
{[%clk 0:00:05]} 51... Kh5 {[%clk 0:00:04.2]} 52. Kg3 {[%clk 0:00:05.2]} 52...
Bf5 {[%clk 0:00:04.4]} 53. Ng1 {[%clk 0:00:05.1]} 53... Kg6 {[%clk 0:00:04.2]}
54. Ne2 {[%clk 0:00:05.4]} 54... Kf6 {[%clk 0:00:04.1]} 55. Kh4 {[%clk
0:00:05.6]} 55... Ke7 {[%clk 0:00:03.3]} 56. Ng3 {[%clk 0:00:06.3]} 56... Kf6
{[%clk 0:00:02.5]} 57. Kh5 {[%clk 0:00:06.1]} 57... Bc8 {[%clk 0:00:02.4]} 58.
Kh6 {[%clk 0:00:06.1]} 58... Ke7 {[%clk 0:00:02.7]} 59. Kg5 {[%clk 0:00:06]}
59... Kd6 {[%clk 0:00:02.5]} 60. f5 {[%clk 0:00:05.8]} 60... Kc7 {[%clk
0:00:03]} 61. f6 {[%clk 0:00:06.3]} 61... Be6 {[%clk 0:00:03.4]} 62. Kg6 {[%clk
0:00:06.7]} 62... b6 {[%clk 0:00:04]} 63. Kg7 {[%clk 0:00:04.3]} 63... bxa5
{[%clk 0:00:04.4]} 64. bxa5 {[%clk 0:00:04.8]} 64... c5 {[%clk 0:00:05]} 65.
dxc5 {[%clk 0:00:05.7]} 65... Kc6 {[%clk 0:00:05.1]} 66. Kf8 {[%clk 0:00:05.7]}
66... Kxc5 {[%clk 0:00:05.1]} 67. Ke7 {[%clk 0:00:06.6]} 67... Bg8 {[%clk
0:00:05.5]} 68. Kf8 {[%clk 0:00:06.7]} 68... Be6 {[%clk 0:00:05.7]} 69. Ke7
{[%clk 0:00:07.3]} 69... Bg8 {[%clk 0:00:06.1]} 70. Nf5 {[%clk 0:00:08]} 70...
d4 {[%clk 0:00:06.4]} 71. Nxd4 {[%clk 0:00:06.1]} 71... g3 {[%clk 0:00:06.7]}
72. Ne2 {[%clk 0:00:05.8]} 72... g2 {[%clk 0:00:07]} 73. f7 {[%clk 0:00:05.7]}
73... Bxf7 {[%clk 0:00:07.1]} 74. Kxf7 {[%clk 0:00:06.6]} 74... Kc4 {[%clk
0:00:07.6]} 75. Ng1 {[%clk 0:00:06.5]} 75... Kc3 {[%clk 0:00:07.7]} 76. Ke6
{[%clk 0:00:06.7]} 76... Kd3 {[%clk 0:00:08]} 77. Kf5 {[%clk 0:00:07.4]} 77...
Kxe3 {[%clk 0:00:08.2]} 78. Kg4 {[%clk 0:00:08]} 78... Kf2 {[%clk 0:00:08.6]}
79. Nh3+ {[%clk 0:00:08.6]} 79... Kf1 {[%clk 0:00:08.9]} 80. Kf4 {[%clk
0:00:09.3]} 80... Ke2 {[%clk 0:00:04]} 81. Ng1+ {[%clk 0:00:08.7]} 81... Kf2
{[%clk 0:00:04]} 82. Nh3+ {[%clk 0:00:09.2]} 82... Ke2 {[%clk 0:00:04.1]} 83.
Kxe4 {[%clk 0:00:09.5]} 83... Kd2 {[%clk 0:00:04.5]} 84. Kd5 {[%clk 0:00:09.5]}
84... Ke2 {[%clk 0:00:03.9]} 85. Ke4 {[%clk 0:00:09.7]} 85... Kd2 {[%clk
0:00:03.8]} 86. Ng1 {[%clk 0:00:10.2]} 86... Ke1 {[%clk 0:00:04]} 87. Ke3 {[%clk
0:00:10.5]} 87... Kf1 {[%clk 0:00:04.1]} 88. Nf3 {[%clk 0:00:10.4]} 88... g1=Q+
{[%clk 0:00:03]} 89. Nxg1 {[%clk 0:00:10.9]} 89... Kxg1 {[%clk 0:00:03.9]} 90.
Kd4 {[%clk 0:00:11.6]} 90... Kf2 {[%clk 0:00:04.8]} 91. Kc5 {[%clk 0:00:12.5]}
91... Ke3 {[%clk 0:00:05.7]} 92. Kb6 {[%clk 0:00:13.4]} 92... Kd4 {[%clk
0:00:06.6]} 93. Kxa6 {[%clk 0:00:14.1]} 93... Kc5 {[%clk 0:00:07]} 94. Kb7
{[%clk 0:00:14.8]} 1-0